fUSD/lending_fUSD_20260404
["ID","MTS","AMOUNT","RATE_DAILY","PERIOD"]
[419698086,1775311850251,-500.0,0.00015895,2]
[419698087,1775311850260,-552.9555598,0.00015895,2]
[419698088,1775311850270,-500.0,0.00015895,2]
[419698089,1775311850280,-7126.0444935,0.00015896,2]
[419698090,1775311850289,-8456.5746633,0.00015896,2]
[419698091,1775311850299,-3059.7221736,0.00015896,2]
[419698092,1775311850308,-151.0,0.00015897,2]
[419698093,1775311850317,-151.0,0.00015897,2]
[419698094,1775311850327,-151.0,0.00015897,2]
[419698095,1775311850336,-500.0,0.00015898,2]
[419698096,1775311850346,-68827.0416064,0.00015899,2]
[419698097,1775311850355,-500.0,0.00015899,2]
[419698098,1775311850365,-200.0,0.000159,2]
[419698099,1775311850375,-285.44521363,0.000159,2]
[419698100,1775311850385,-25559.75281378,0.000159,2]
[419698101,1775311850394,-34970.15196763,0.000159,3]
[419698102,1775311850404,-500.0,0.000159,2]
[419698103,1775311850414,-2207.35007582,0.000159,2]
[419698104,1775311850424,-4093.44176206,0.000159,2]
[419698105,1775311850433,-2191.0,0.000159,5]
[419698106,1775311850444,-1953.0,0.0001591,5]
[419698107,1775311850454,-168.0,0.0001593,2]
[419698108,1775311850463,-200.821375,0.00015957,7]
[419698109,1775311850473,-500.0,0.00015973,2]
[419698110,1775311850482,-381.20749087,0.00015973,2]
[419698111,1775311850491,-500.0,0.00015973,2]
[419698112,1775311850501,-500.0,0.00015973,2]
[419698113,1775311850511,-502.58762782,0.00015973,2]
[419698114,1775311850520,-161.57925816,0.00015983,2]
[419698115,1775311850530,-152.0,0.00015983,2]
[419698116,1775311850539,-152.0,0.00015983,2]
[419698117,1775311850549,-152.0306331,0.00015983,2]
[419698118,1775311850559,-155.4603948,0.00015984,2]
[419698119,1775311850569,-174.08505019,0.00015984,2]
[419698120,1775311850579,-207.72801877,0.00015984,2]
[419698121,1775311850588,-190.90653448,0.00015984,2]
[419698122,1775311850598,-263.28185684,0.00015984,2]
[419698123,1775311850607,-265.11122131,0.00015984,2]
[419698124,1775311850618,-286.21528981,0.00015984,2]
[419698125,1775311850627,-585.93302223,0.00015984,2]
[419698126,1775311850638,-351.93732784,0.00015984,2]
[419698127,1775311850649,-150.85095809,0.00015989,2]
[419698128,1775311850659,-282.097313,0.00015994,7]
[419698129,1775311850668,-151.0,0.00015997,2]
[419698130,1775311850678,-666.0,0.00015999,2]
[419698131,1775311850687,-155.0,0.00015999,2]
[419698132,1775311850697,-735.21585211,0.00015999,2]
[419698133,1775311850707,-500.0,0.00015999,2]
[419698134,1775311850716,-500.0,0.00015999,2]
[419698135,1775311850725,-500.0,0.00015999,2]
[419698136,1775311850735,-500.0,0.00015999,2]
[419698137,1775311850745,-500.0,0.00015999,2]
[419698138,1775311850755,-500.0,0.00015999,2]
[419698139,1775311850764,-500.0,0.00015999,2]
[419698140,1775311850773,-500.0,0.00015999,2]
[419698141,1775311850783,-500.0,0.00015999,2]
[419698142,1775311850792,-500.0,0.00015999,2]
[419698143,1775311850802,-500.0,0.00015999,2]
[419698144,1775311850812,-500.0,0.00015999,2]
[419698145,1775311850821,-500.0,0.00015999,2]
[419698146,1775311850830,-500.0,0.00015999,2]
[419698147,1775311850840,-500.0,0.00015999,2]
[419698148,1775311850849,-500.0,0.00015999,2]
[419698149,1775311850858,-500.0,0.00015999,2]
[419698150,1775311850868,-500.0,0.00015999,2]
[419698151,1775311850877,-500.0,0.00015999,2]
[419698152,1775311850887,-500.0,0.00015999,2]
[419698153,1775311850896,-500.0,0.00015999,2]
[419698154,1775311850905,-500.0,0.00015999,2]
[419698155,1775311850914,-500.0,0.00015999,2]
[419698156,1775311850923,-500.0,0.00015999,2]
[419698157,1775311850933,-500.0,0.00015999,2]
[419698158,1775311850943,-500.0,0.00015999,2]
[419698159,1775311850953,-500.0,0.00015999,2]
[419698160,1775311850964,-500.0,0.00015999,2]
[419698161,1775311850974,-500.0,0.00015999,2]
[419698162,1775311850984,-500.0,0.00015999,2]
[419698163,1775311850993,-500.0,0.00015999,2]
[419698164,1775311851003,-500.0,0.00015999,2]
[419698165,1775311851012,-500.0,0.00015999,2]
[419698166,1775311851021,-500.0,0.00015999,2]
[419698167,1775311851031,-500.0,0.00015999,2]
[419698168,1775311851040,-500.0,0.00015999,2]
[419698169,1775311851050,-500.0,0.00015999,2]
[419698170,1775311851059,-478.24015472,0.00015999,2]
[419698171,1775311851068,-1755.0,0.00016,5]
[419698172,1775311851079,-94915.33457401,0.00016,2]
[419698173,1775311851433,-3726.14162389,0.00016,2]
[419698203,1775313031555,-150.0,0.00012691,2]
[419698204,1775313031564,-163.10417783,0.00013032,2]
[419698205,1775313031574,-198.86358966,0.00013032,2]
[419698206,1775313031583,-500.0,0.00013083,2]
[419698207,1775313031592,-300.0,0.00013094,2]
[419698208,1775313031602,-1200.0,0.00013094,2]
[419698209,1775313031612,-300.0,0.00013094,2]
[419698210,1775313031622,-300.0,0.00013094,2]
[419698211,1775313031631,-1200.0,0.00013095,2]
[419698212,1775313031641,-13162.42675648,0.00013095,2]
[419698213,1775313031650,-1500.0,0.00013096,2]
[419698214,1775313031660,-517.0,0.00013111,2]
[419698215,1775313031670,-2000.0,0.0001317,2]
[419698216,1775313031680,-151.0,0.0001347,2]
[419698217,1775313031689,-150.0,0.00013699,2]
[419698218,1775313031699,-166.66,0.00013699,2]
[419698219,1775313031708,-200.0,0.00013699,2]
[419698220,1775313031718,-1969.73,0.00013699,2]
[419698221,1775313031727,-150.0,0.00013706,2]
[419698222,1775313031736,-1100.0,0.000138,5]
[419698223,1775313031746,-166.08637647,0.000138,2]
[419698224,1775313031757,-204.0,0.00013808,2]
[419698225,1775313031767,-622.0,0.00013821,2]
[419698226,1775313031776,-200.0,0.000139,2]
[419698227,1775313031785,-200.0,0.000139,3]
[419698228,1775313031794,-200.0,0.000139,3]
[419698229,1775313031804,-200.0,0.000139,3]
[419698230,1775313031813,-2300.0,0.000139,5]
[419698231,1775313031822,-150.0,0.00013953,2]
[419698232,1775313031832,-28825.9680157,0.00013954,2]
[419698233,1775313031920,-12828.76259633,0.00013954,2]
[419698235,1775313031932,-250.0,0.00013954,2]
[419698252,1775313037879,-208.55,0.00012966,2]
[419698253,1775313037892,-200.0,0.000139,3]
[419698254,1775313037905,-35959.11598797,0.00013954,2]
[419698255,1775313037916,-166.66,0.00013963,2]
[419698256,1775313037929,-389.0016983,0.00013973,2]
[419698257,1775313037948,-500.0,0.00013973,2]
[419698258,1775313037965,-500.0,0.00013973,2]
[419698259,1775313037980,-500.0,0.00013973,2]
[419698260,1775313037995,-500.0,0.00013973,2]
[419698261,1775313038011,-500.0,0.00013973,2]
[419698264,1775313038025,-500.0,0.00014047,2]
[419698266,1775313038039,-500.0,0.00014047,2]
[419698268,1775313038052,-500.0,0.00014047,2]
[419698271,1775313038066,-500.0,0.00014047,2]
[419698273,1775313038079,-500.0,0.00014047,2]
[419698276,1775313038094,-500.0,0.00014047,2]
[419698278,1775313038108,-500.0,0.00014047,2]
[419698279,1775313038121,-535.14083968,0.00014047,2]
[419698281,1775313038134,-200.0,0.00014047,2]
[419698282,1775313038148,-500.0,0.00014047,2]
[419698283,1775313038161,-500.0,0.00014047,2]
[419698284,1775313038174,-500.0,0.00014047,2]
[419698285,1775313038186,-500.0,0.00014047,2]
[419698286,1775313038198,-151.0,0.00014047,2]
[419698288,1775313038212,-500.0,0.00014047,2]
[419698290,1775313038223,-151.0,0.00014047,2]
[419698291,1775313038238,-151.0,0.00014047,2]
[419698292,1775313038252,-151.0,0.00014047,2]
[419698293,1775313038264,-151.0,0.00014047,2]
[419698294,1775313038276,-151.0,0.00014047,2]
[419698295,1775313038288,-151.0,0.00014047,2]
[419698296,1775313038300,-151.0,0.00014047,2]
[419698297,1775313038312,-151.0,0.00014047,2]
[419698298,1775313038324,-151.0,0.00014047,2]
[419698299,1775313038336,-151.0,0.00014047,2]
[419698300,1775313038348,-151.0,0.00014047,2]
[419698301,1775313038360,-151.0,0.00014047,2]
[419698302,1775313038372,-151.0,0.00014047,2]
[419698303,1775313038383,-151.0,0.00014047,2]
[419698304,1775313038396,-657.0206,0.00014054,2]
[419698305,1775313038408,-1819.236,0.00014054,2]
[419698306,1775313038424,-185.877,0.00014054,2]
[419698307,1775313038437,-33024.725,0.00014055,2]
[419698308,1775313038450,-2500.0,0.00014055,2]
[419698309,1775313038463,-2750.74532915,0.00014055,2]
[419698310,1775313038476,-5747.92960115,0.00014056,2]
[419698311,1775313038489,-6801.88292655,0.00014073,2]
[419698312,1775313038501,-151.0,0.00014152,2]
[419698313,1775313038514,-151.0,0.00014152,2]
[419698314,1775313038527,-500.0,0.00014154,2]
[419698315,1775313038540,-500.0,0.00014154,2]
[419698316,1775313038553,-500.0,0.00014154,2]
[419698317,1775313038565,-502.29456068,0.00014154,2]
[419698318,1775313038576,-500.0,0.00014154,2]
[419698319,1775313038588,-500.0,0.00014154,2]
[419698320,1775313038600,-500.0,0.00014154,2]
[419698321,1775313038613,-500.0,0.00014154,2]
[419698322,1775313038625,-500.0,0.00014154,2]
[419698323,1775313038637,-500.0,0.00014154,2]
[419698324,1775313038649,-500.0,0.00014154,2]
[419698325,1775313038661,-500.0,0.00014154,2]
[419698326,1775313038672,-500.0,0.00014154,2]
[419698327,1775313038685,-500.0,0.00014154,2]
[419698328,1775313038696,-500.0,0.00014154,2]
[419698329,1775313038707,-500.0,0.00014154,2]
[419698330,1775313038718,-500.0,0.00014154,2]
[419698331,1775313038730,-500.0,0.00014154,2]
[419698332,1775313038743,-500.0,0.00014155,2]
[419698333,1775313038755,-500.0,0.00014155,2]
[419698334,1775313038766,-500.0,0.00014155,2]
[419698335,1775313038777,-112791.9788,0.00014156,2]
[419698336,1775313038789,-1000.0,0.00014156,2]
[419698337,1775313038800,-500.0,0.00014173,2]
[419698338,1775313038811,-500.48315369,0.00014173,2]
[419698339,1775313038821,-500.0,0.00014173,2]
[419698340,1775313038832,-500.0,0.00014173,2]
[419698341,1775313038844,-227.30046162,0.00014173,2]
[419698342,1775313038855,-500.0,0.00014173,2]
[419698343,1775313038867,-500.55768791,0.00014173,2]
[419698344,1775313038879,-500.0,0.00014173,2]
[419698345,1775313038889,-500.0,0.00014173,2]
[419698346,1775313038900,-500.0,0.00014173,2]
[419698347,1775313038911,-503.55252603,0.00014173,2]
[419698348,1775313038921,-500.0,0.00014173,2]
[419698349,1775313038931,-166.66,0.00014227,2]
[419698350,1775313038943,-500.0,0.00014255,2]
[419698351,1775313038955,-5747.92960107,0.00014261,2]
[419698352,1775313038966,-6801.88292655,0.00014334,2]
[419698353,1775313038978,-150.0,0.00014344,2]
[419698354,1775313038989,-500.0,0.00014356,2]
[419698355,1775313039000,-800.0,0.00014356,2]
[419698356,1775313039012,-420.0,0.00014358,2]
[419698357,1775313039023,-318.9513202,0.00014365,2]
[419698358,1775313039035,-1969.73,0.00014384,2]
[419698359,1775313039045,-195.0,0.00014391,2]
[419698360,1775313039056,-193.0,0.00014391,2]
[419698361,1775313039067,-150.0,0.000144,2]
[419698362,1775313039079,-150.0,0.000144,2]
[419698363,1775313039090,-150.0,0.000144,2]
[419698364,1775313039101,-150.0,0.000144,2]
[419698365,1775313039113,-150.0,0.000144,2]
[419698366,1775313039124,-150.0,0.000144,2]
[419698367,1775313039136,-150.0,0.000144,2]
[419698368,1775313039148,-150.0,0.000144,2]
[419698369,1775313039159,-150.0,0.000144,2]
[419698370,1775313039171,-1680.0,0.00014403,2]
[419698371,1775313039183,-150.11,0.00014418,2]
[419698372,1775313039196,-200.0,0.00014418,2]
[419698373,1775313039206,-5747.92960107,0.00014466,2]
[419698374,1775313039217,-166.66,0.00014492,2]
[419698375,1775313039228,-1000.0,0.00014521,2]
[419698376,1775313039240,-1000.0,0.00014521,2]
[419698377,1775313039253,-1000.0,0.00014521,2]
[419698378,1775313039265,-200.0,0.00014595,2]
[419698379,1775313039277,-6801.88292655,0.00014595,2]
[419698380,1775313039289,-5747.92960107,0.00014671,2]
[419698381,1775313039303,-500.0,0.00014705,2]
[419698382,1775313039314,-503.01601482,0.00014705,2]
[419698383,1775313039327,-500.0,0.00014721,2]
[419698384,1775313039339,-500.0,0.00014721,2]
[419698385,1775313039352,-166.66,0.00014756,2]
[419698386,1775313039365,-2000.0,0.00014817,2]
[419698387,1775313039374,-6801.88292655,0.00014856,2]
[419698388,1775313039383,-5747.92960107,0.00014876,2]
[419698389,1775313039404,-166.66,0.0001502,2]
[419698390,1775313039414,-500.0,0.00015041,2]
[419698391,1775313039423,-500.0,0.00015068,2]
[419698392,1775313039433,-500.0,0.00015068,2]
[419698394,1775313039443,-1500.0,0.00015068,2]
[419698395,1775313040001,-1969.73,0.00015068,2]
[419698396,1775313040028,-800.0,0.00015068,2]
[419698397,1775313040049,-255.0,0.00015069,2]
[419698398,1775313040059,-5747.92960107,0.0001508,2]
[419698399,1775313040069,-739.36,0.000151,2]
[419698400,1775313040079,-6801.88292655,0.00015117,2]
[419698401,1775313040088,-216.24645974,0.00015143,2]
[419698402,1775313040098,-200.0,0.00015167,2]
[419698403,1775313040107,-577.55072307,0.00015167,2]
[419698404,1775313040117,-174.61919141,0.00015167,2]
[419698405,1775313040126,-151.0,0.00015167,2]
[419698406,1775313040136,-150.0,0.000152,2]
[419698407,1775313040145,-150.0,0.000152,2]
[419698408,1775313040155,-300.0,0.000152,5]
[419698409,1775313040164,-476.904012,0.000152,2]
[419698410,1775313040174,-5747.92960107,0.00015285,2]
[419698411,1775313040183,-600.0,0.000153,5]
[419698412,1775313040193,-180.386633,0.00015366,2]
[419698413,1775313040202,-6801.88292655,0.00015378,2]
[419698414,1775313040211,-261.201215,0.00015381,7]
[419698415,1775313040221,-3500.0,0.000154,5]
[419698416,1775313040230,-900.0,0.000154,5]
[419698417,1775313040239,-350.0,0.00015402,2]
[419698418,1775313040249,-283.464709,0.00015411,2]
[419698419,1775313040259,-353.95,0.00015426,2]
[419698420,1775313040270,-351.437407,0.00015438,7]
[419698421,1775313040280,-5747.92960107,0.0001549,2]
[419698422,1775313040290,-4700.0,0.000155,5]
[419698423,1775313040299,-1200.0,0.000155,5]
[419698424,1775313040309,-411.633083,0.00015543,7]
[419698425,1775313040318,-5888.0,0.00015547,2]
[419698426,1775313040328,-5900.0,0.000156,5]
[419698427,1775313040338,-1500.0,0.000156,5]
[419698428,1775313040348,-155.14456623,0.00015608,2]
[419698429,1775313040358,-500.0,0.00015616,2]
[419698430,1775313040367,-220.0,0.00015619,2]
[419698431,1775313040377,-6801.88292655,0.00015639,2]
[419698432,1775313040386,-300.0,0.00015659,2]
[419698433,1775313040396,-3287.71215921,0.0001568,2]
[419698434,1775313040405,-5747.92960107,0.00015695,2]
[419698435,1775313040414,-1100.0,0.000157,5]
[419698436,1775313040424,-300.0,0.000157,5]
[419698437,1775313040433,-300.0,0.000157,2]
[419698438,1775313040443,-2000.0,0.00015701,2]
[419698439,1775313040453,-300.0,0.00015711,2]
[419698440,1775313040463,-181.08010149,0.00015715,2]
[419698441,1775313040474,-300.0,0.00015722,2]
[419698442,1775313040483,-500.0,0.00015726,2]
[419698443,1775313040492,-800.0,0.00015726,2]
[419698444,1775313040501,-1000.0,0.00015737,2]
[419698445,1775313040511,-1000.0,0.00015741,2]
[419698446,1775313040521,-480.0,0.00015745,2]
[419698447,1775313040530,-163.0,0.00015753,2]
[419698448,1775313040540,-245.0,0.00015753,2]
[419698449,1775313040549,-163.0,0.00015753,2]
[419698450,1775313040559,-150.0,0.00015753,2]
[419698451,1775313040568,-1969.73,0.00015753,2]
[419698452,1775313040578,-220.0,0.0001576,2]
[419698453,1775313040587,-1000.0,0.00015768,2]
[419698454,1775313040597,-220.0,0.00015772,2]
[419698455,1775313040607,-483.76,0.00015779,2]
[419698456,1775313040616,-483.76,0.00015779,2]
[419698457,1775313040626,-483.76,0.00015779,2]
[419698458,1775313040636,-483.76,0.00015779,2]
[419698459,1775313040645,-483.74,0.00015779,2]
[419698460,1775313040655,-1000.0,0.00015792,2]
[419698461,1775313040664,-1100.0,0.000158,5]
[419698462,1775313040675,-300.0,0.000158,5]
[419698463,1775313040684,-2000.0,0.00015801,2]
[419698465,1775313040694,-319.0,0.00015803,2]
[419698466,1775313040703,-150.0,0.00015804,2]
[419698467,1775313040714,-150.0,0.00015819,2]
[419698468,1775313040723,-1000.0,0.00015822,2]
[419698469,1775313040733,-1000.0,0.00015834,2]
[419698470,1775313040743,-220.0,0.00015836,2]
[419698472,1775313040752,-1000.0,0.00015839,2]
[419698474,1775313040761,-1525.0,0.00015844,2]
[419698475,1775313040771,-532.0,0.00015856,2]
[419698476,1775313040781,-207.06786175,0.0001586,2]
[419698477,1775313040790,-836.1943087,0.0001586,2]
[419698478,1775313040799,-6336.40783663,0.0001586,2]
[419698479,1775313040809,-1263.0,0.0001586,2]
[419698480,1775313040819,-415.0,0.0001586,2]
[419698481,1775313040828,-3521.0,0.0001586,2]
[419698482,1775313040838,-4546.98504549,0.0001586,2]
[419698483,1775313042093,-1446.03984383,0.00015401,2]
[419698484,1775313042104,-2000.0,0.00015501,2]
[419698485,1775313042115,-2000.0,0.00015601,2]
[419698486,1775313042126,-1472.01495451,0.0001586,2]
[419698487,1775313042137,-1000.0,0.00015863,2]
[419698488,1775313042148,-150.0,0.00015865,2]
[419698489,1775313042158,-223.0,0.00015869,2]
[419698490,1775313042168,-500.0,0.00015872,2]
[419698491,1775313042178,-200.0,0.00015872,2]
[419698492,1775313042188,-503.37341793,0.00015873,2]
[419698493,1775313042197,-418.82438739,0.00015873,2]
[419698494,1775313042207,-500.0,0.00015873,2]
[419698495,1775313042217,-500.0,0.00015873,2]
[419698496,1775313042227,-500.0,0.00015873,2]
[419698497,1775313042236,-561.18350506,0.00015873,2]
[419698498,1775313042246,-500.0,0.00015873,2]
[419698499,1775313042256,-220.0,0.00015882,2]
[419698500,1775313042265,-1000.0,0.00015885,2]
[419698501,1775313042275,-213.0,0.00015887,2]
[419698502,1775313042284,-2000.0,0.0001589,2]
[419698503,1775313042294,-5747.92960107,0.000159,2]
[419698504,1775313042303,-1100.0,0.000159,5]
[419698505,1775313042312,-300.0,0.000159,5]
[419698506,1775313042322,-688.04722644,0.000159,2]
[419698507,1775313042333,-1000.0,0.000159,2]
[419698508,1775313042344,-6801.88292655,0.000159,2]
[419698509,1775313042355,-1883.82385362,0.000159,2]
[419698510,1775313042364,-54503.86923488,0.000159,2]
[419698511,1775313042375,-201.67684113,0.000159,2]
[419698512,1775313042384,-1966.0,0.000159,5]
[419698513,1775313042396,-1567.0,0.000159,5]
[419698514,1775313042405,-2000.0,0.00015901,2]
[419698515,1775313042415,-159.0,0.00015904,2]
[419698516,1775313042425,-1000.0,0.00015905,2]
[419698517,1775313042434,-1000.0,0.00015907,2]
[419698518,1775313042444,-1000.0,0.00015919,2]
[419698519,1775313042454,-1000.0,0.00015924,2]
[419698520,1775313042463,-150.0,0.00015929,2]
[419698521,1775313042473,-150.0,0.00015946,2]
[419698522,1775313042484,-206.58121204,0.00015948,2]
[419698523,1775313042494,-170.43588283,0.00015948,2]
[419698524,1775313042504,-353.95390695,0.00015953,2]
[419698525,1775313042513,-5032.90549885,0.0001596,2]
[419698526,1775313042523,-178.15026946,0.00015964,2]
[419698527,1775313042533,-1000.0,0.00015969,2]
[419698528,1775313042543,-3866.0,0.00015973,2]
[419698529,1775313042552,-324.0,0.00015973,2]
[419698530,1775313042563,-513.6791618,0.00015973,2]
[419698531,1775313042573,-500.0,0.00015973,2]
[419698532,1775313042582,-500.0,0.00015973,2]
[419698533,1775313042592,-500.0,0.00015973,2]
[419698534,1775313042603,-178.83121777,0.00015973,2]
[419698535,1775313042613,-183.74490038,0.00015973,2]
[419698537,1775313042623,-500.0,0.00015973,2]
[419698538,1775313042633,-500.96208165,0.00015973,2]
[419698539,1775313042642,-500.0,0.00015973,2]
[419698540,1775313042652,-500.0,0.00015973,2]
[419698541,1775313042661,-500.0,0.00015973,2]
[419698542,1775313042671,-150.0,0.0001598,2]
[419698543,1775313042680,-165.79315811,0.00015984,2]
[419698544,1775313042690,-201.1346108,0.0001599,2]
[419698545,1775313042700,-377.41827452,0.00015999,2]
[419698546,1775313042709,-500.0,0.00015999,2]
[419698547,1775313042719,-501.18445721,0.00015999,2]
[419698548,1775313042729,-500.0,0.00015999,2]
[419698550,1775313042738,-500.0,0.00015999,2]
[419698552,1775313042747,-500.0,0.00015999,2]
[419698554,1775313042756,-500.0,0.00015999,2]
[419698556,1775313042766,-500.0,0.00015999,2]
[419698557,1775313042777,-150.0,0.00016,2]
[419698558,1775313042786,-150.0,0.00016,2]
[419698559,1775313042795,-150.0,0.00016,2]
[419698560,1775313042805,-150.0,0.00016,2]
[419698561,1775313042814,-150.0,0.00016,2]
[419698562,1775313042823,-150.0,0.00016,2]
[419698563,1775313042833,-150.0,0.00016,2]
[419698564,1775313042843,-2694063.04608822,0.00016,2]
[419698565,1775313042856,-3451.94947151,0.00016,2]
[419698566,1775313043423,-403.46388559,0.00016,2]
[419698567,1775313044324,-1566.50162416,0.00013954,2]
[419698568,1775313044344,-40095.02995952,0.00013954,2]
[419698570,1775313045578,-2424.12847517,0.00013954,2]
[419698571,1775313045687,-1588.36849833,0.00013954,2]
[419698572,1775313045699,-2644.12,0.00013954,2]
[419698573,1775313045916,-1136.82271602,0.00013954,2]
[419698665,1775314007004,-1815.84,0.00011507,2]
[419698666,1775314007029,-84.16,0.00011507,2]
[419698673,1775314199472,439.31,6.174e-05,2]
[419698674,1775314199660,439.31,6.499e-05,2]
[419698675,1775314199844,439.31,6.824e-05,2]
[419698676,1775314200032,439.31,7.149e-05,2]
[419698677,1775314200569,439.31,7.474e-05,2]
[419698678,1775314200619,439.31,7.799e-05,2]
[419698679,1775314200703,439.31,8.124e-05,2]
[419698680,1775314200809,439.31,8.449e-05,2]
[419698681,1775314201008,439.31,8.774e-05,2]
[419698682,1775314201204,439.31,9.099e-05,2]
[419698683,1775314201393,155.13453103,9.424e-05,2]
[419698684,1775314201428,284.17546897,9.424e-05,2]
[419698685,1775314201591,439.31,9.749e-05,2]
[419698690,1775314231966,-439.31,0.00010074,2]
[419698691,1775314231976,-439.31,0.00010399,2]
[419698692,1775314231986,-439.31,0.00010724,2]
[419698693,1775314231996,-439.31,0.00011049,2]
[419698694,1775314232005,-600.0,0.00011142,2]
[419698695,1775314232015,-200.04654665,0.00011142,2]
[419698696,1775314232024,-439.31,0.00011374,2]
[419698697,1775314232034,-439.31,0.00011699,2]
[419698698,1775314232043,-439.31,0.00012024,2]
[419698699,1775314232052,-594.74,0.00012237,2]
[419698700,1775314232062,-250.0,0.00012274,2]
[419698701,1775314232072,-187.95451372,0.00012312,2]
[419698702,1775314232081,-439.31,0.00012349,2]
[419698703,1775314232090,-600.0,0.00012387,2]
[419698704,1775314232100,-600.0,0.0001251,2]
[419698705,1775314232110,-4481.39,0.00012537,2]
[419698706,1775314232119,-500.0,0.0001259,2]
[419698707,1775314232135,-193.0,0.00012658,2]
[419698708,1775314232144,-640.0,0.00012799,2]
[419698709,1775314232155,-200.0,0.000128,4]
[419698710,1775314232165,-150.0,0.00012846,2]
[419698711,1775314232174,-500.0,0.000129,4]
[419698713,1775314232184,-204.13,0.00012996,2]
[419698715,1775314232196,-250.0,0.00013,2]
[419698718,1775314232205,-211.87,0.00013026,2]
[419698720,1775314232215,-521.0,0.00013111,2]
[419698722,1775314232225,-204.56,0.00013149,2]
[419698724,1775314232235,-2130.10899346,0.000132,2]
[419698726,1775314232244,-200.11911863,0.00013325,2]
[419698728,1775314232254,-172.01180661,0.00013325,2]
[419698730,1775314232265,-423.06148525,0.00013361,2]
[419698732,1775314232275,-500.0,0.00013373,2]
[419698734,1775314232285,-500.0,0.00013373,2]
[419698736,1775314232295,-500.0,0.00013373,2]
[419698738,1775314232305,-500.0,0.00013373,2]
[419698740,1775314232315,-500.0,0.00013373,2]
[419698741,1775314232325,-1600.0,0.00013376,2]
[419698742,1775314232335,-271.640166,0.0001339,2]
[419698743,1775314232345,-1000.0,0.00013399,2]
[419698744,1775314232356,-150.0,0.00013399,2]
[419698745,1775314232366,-162.75344646,0.00013399,2]
[419698746,1775314232375,-500.0,0.00013399,2]
[419698747,1775314232385,-500.0,0.00013399,2]
[419698748,1775314232395,-156.91,0.00013399,2]
[419698749,1775314232405,-1315299.6284,0.000134,2]
[419698750,1775314232415,-3240.0,0.00013425,2]
[419698751,1775314232425,-1950.0,0.00013461,2]
[419698752,1775314232435,-600.0,0.00013461,2]
[419698753,1775314232445,-306.14552415,0.00013461,2]
[419698754,1775314232455,-193.0,0.00013461,2]
[419698755,1775314232465,-250.0,0.00013461,2]
[419698756,1775314232475,-200.11911863,0.00013474,2]
[419698757,1775314232485,-220417.06299307,0.000135,7]
[419698758,1775314232495,-9282.56785082,0.00013574,2]
[419698759,1775314232505,-500.0,0.00013698,2]
[419698760,1775314232515,-500.0,0.00013698,2]
[419698761,1775314232524,-500.0,0.00013698,2]
[419698762,1775314232535,-500.0,0.00013698,2]
[419698763,1775314232545,-184.84985572,0.00013698,2]
[419698764,1775314232555,-150.0,0.00013699,2]
[419698765,1775314232564,-150.0,0.00013699,2]
[419698766,1775314232574,-150.0,0.00013699,2]
[419698767,1775314232584,-500.0,0.00013699,2]
[419698768,1775314232594,-204.13,0.00013718,2]
[419698769,1775314232604,-500.0,0.00013752,2]
[419698770,1775314232614,-500.0,0.00013752,2]